Cogmind - Beta 10.2 *** ADVENTURER MODE // 2021.10.26 @ 02:01:57 Player: TheEpicPerson Result: Destroyed by B-99 Colossus with Linear Accelerator Performance ------------- Evolutions (9) 4500 Regions Visited (26) 5200 Robots Destroyed (132) 660 Value Destroyed (3415) 3415 Prototype IDs (55) 1100 Alien Tech Used (3) 600 Bonus (7997) 7997 TOTAL SCORE: 23472 Bonus ------- Follower Combat Kills 407 Met Data Miner 300 Met Warlord at Base 500 MAIN.C Attacked Warlord 500 Found Hidden Lab 3000 Used Core Reset Matrix 3000 Pursued by Intercept 500 Friendly Fire -210 Cogmind --------- Core Integrity 0/1600 Matter 180/300 Energy 59/100 System Corruption 3% Temperature Cool (0) Movement Core (50) Location -1/Access Parts ------- > --- POWER (2) -------- (None) > --- PROPULSION (7) --- (None) > --- UTILITY (15) ----- Improved Signal Interpreter > --- WEAPON (2) ------- (None) > --- INVENTORY (4) ---- Advanced Sensor Array Skeleton Box Mini Grenade Launcher Peak State ------------ > --- POWER ------------ Micro Fission Core Particle Reactor > --- PROPULSION ------- Impulse Thruster Field Propulsion Array Improved Diametric Drive Impulse Thruster Array > --- UTILITY ---------- Advanced Visual Processing Unit Advanced Visual Processing Unit Experimental Sensor Array Improved Signal Interpreter Advanced Signal Interpreter Medium Regenerative Plating Hacking Suite Hacking Suite Advanced Hacking Suite Deep Network Scanner System Shield > --- WEAPON ----------- Vortex Rail Plasma Sword > --- INVENTORY -------- Improved Diametric Drive Advanced Sensor Array Skeleton Box Mini Grenade Launcher [Rating: 127] Favorites ----------- Power Light Nuclear Core Engine Light Deuterium Engine Power Core Light Nuclear Core Reactor Particle Reactor Propulsion Light Treads Treads Light Treads Leg Aluminum Leg Hover Unit Gravmag System Flight Unit VTOL Module Utility Hacking Suite Device Long-range Sensor Array Storage High-capacity Storage Unit Processor Improved Signal Interpreter Hackware Hacking Suite Protection Hardened Light Armor Plating Weapon Heavy Assault Rifle Energy Gun Vortex Rail Energy Cannon Particle Cannon Ballistic Gun Heavy Assault Rifle Special Weapon Molecular Deconstructor Impact Weapon Heavy Mace Slashing Weapon Plasma Sword Build | -11 -10 -10 -9 -9 -9 -8 -8 -7 -6 -6 -6 -6 -5 -5 -5 -5 -4 -4 -4 -4 -3 -3 -3 -3 -2 -1 ------- Run | Scr Mat Min Mat Min Exi Min Mat Fac Fac Low Low Dat Pro Fac Ext Cet Fac Upp Upp War Pro Res Arm Lab Res Acc Slots Evolved 18 | . . . 2 . . . 2 2 2 . . . . 2 . . 2 . . . . 2 . . 2 2 Power 1 | . . . . . . . . . . . . . . 1 . . . . . . . . . . . . Propulsion 4 | . . . 1 . . . 1 . . . . . . 1 . . . . . . . 1 . . . . Utility 13 | . . . 1 . . . 1 2 2 . . . . . . . 2 . . . . 1 . . 2 2 Weapon . | . . . . . . . . . . . . . . . . . . . . . . . . . . . Parts Attached 189 | 5 14 3 30 . 7 2 22 18 26 3 1 . 6 11 2 5 6 . 6 4 . 6 3 3 . 6 Power 17 | 1 . . 3 . . . . 2 4 1 . . . 1 2 . 1 . . . . 1 1 . . . Engine 5 | 1 . . 3 . . . . . . . . . . . . . 1 . . . . . . . . . Core 10 | . . . . . . . . 2 4 1 . . . 1 2 . . . . . . . . . . . Reactor 2 | . . . . . . . . . . . . . . . . . . . . . . 1 1 . . . Propulsion 49 | 2 2 . 7 . . 2 7 5 9 1 . . 1 4 . 1 1 . . 1 . 2 . . . 4 Treads 19 | 2 1 . 7 . . 2 7 . . . . . . . . . . . . . . . . . . . Leg . | . . . . . . . . . . . . . . . . . . . . . . . . . . . Wheel . | . . . . . . . . . . . . . . . . . . . . . . . . . . . Hover 5 | . 1 . . . . . . . 3 . . . . . . . . . . . . . . . . 1 Flight 25 | . . . . . . . . 5 6 1 . . 1 4 . 1 1 . . 1 . 2 . . . 3 Utility 88 | 1 10 1 12 . 6 . 7 11 7 1 1 . 3 5 . 3 4 . 4 2 . 3 2 3 . 2 Device 32 | 1 1 . 3 . 1 . 1 6 5 . . . 1 1 . 1 3 . 2 1 . 1 . 2 . 2 Storage 10 | . 2 . 1 . 2 . 2 1 1 . . . . . . . . . 1 . . . . . . . Processor 12 | . 2 . . . . . . 2 . 1 1 . 1 1 . . 1 . 1 1 . . 1 . . . Hackware 9 | . . . . . . . . 2 1 . . . 1 2 . . . . . . . 2 . 1 . . Protection 25 | . 5 1 8 . 3 . 4 . . . . . . 1 . 2 . . . . . . 1 . . . Artifact . | . . . . . . . . . . . . . . . . . . . . . . . . . . . Weapon 35 | 1 2 2 8 . 1 . 8 . 6 . . . 2 1 . 1 . . 2 1 . . . . . . Energy Gun 3 | . . . 1 . . . . . 1 . . . . . . . . . . 1 . . . . . . Energy Cannon 2 | . . . 1 . . . . . 1 . . . . . . . . . . . . . . . . . Ballistic Gun 18 | 1 1 2 6 . 1 . 6 . 1 . . . . . . . . . . . . . . . . . Ballistic Cannon . | . . . . . . . . . . . . . . . . . . . . . . . . . . . Launcher . | . . . . . . . . . . . . . . . . . . . . . . . . . . . Special Weapon 3 | . 1 . . . . . . . 1 . . . . . . . . . 1 . . . . . . . Impact Weapon 4 | . . . . . . . 2 . 2 . . . . . . . . . . . . . . . . . Slashing Weapon 5 | . . . . . . . . . . . . . 2 1 . 1 . . 1 . . . . . . . Piercing Weapon . | . . . . . . . . . . . . . . . . . . . . . . . . . . . Special Melee Weapon . | . . . . . . . . . . . . . . . . . . . . . . . . . . . Unidentified Prototypes 12 | . . . . . . . . . 2 . . . . 1 . 1 . . 1 3 . 1 . 3 . . Parts Lost 61 | . . 6 1 . . . 2 . 12 4 1 1 2 . 1 5 . . . . 1 1 1 . . 23 Power 8 | . . . . . . . . . 3 1 . . . . . . . . . . 1 . 1 . . 2 Propulsion 20 | . . 1 1 . . . . . 5 2 1 . . . 1 2 . . . . . . . . . 7 Utility 25 | . . 2 . . . . 1 . 3 1 . 1 1 . . 3 . . . . . 1 . . . 12 Weapon 8 | . . 3 . . . . 1 . 1 . . . 1 . . . . . . . . . . . . 2 Highest Loss Streak 10 | . . 3 1 . . . 1 . 5 2 1 1 2 . 1 5 . . . . 1 1 1 . . 10 Average Slot Usage (%) 85 | . 99 94 85 100 97 88 86 87 78 85 71 72 82 82 86 62 59 68 71 78 81 81 87 89 79 58 Engine 5 | . 14 14 11 11 11 11 9 . . . . . . . . . . 5 5 5 2 . . . . . Core 3 | . . . . . . . . 6 5 6 6 6 6 8 11 7 5 5 5 5 5 4 4 4 4 2 Treads 13 | . 28 25 19 33 33 33 36 . . . . . . . . . . . . . . . . . . . Flight 10 | . . . . . . . . 29 18 25 14 13 19 22 21 13 14 15 15 15 15 16 19 18 16 12 Device 3 | . . . . . . . . 6 12 12 6 6 10 8 5 2 1 5 5 5 5 4 4 3 4 2 Storage 7 | . 14 14 11 11 11 11 9 7 6 6 6 6 6 5 5 3 . . . . . . . . . . Processor 7 | . . . . . . . . 14 11 12 17 20 21 15 11 11 14 15 19 25 26 22 21 22 16 14 Hackware 7 | . . . . . . . . 10 16 13 13 12 11 12 17 14 10 10 10 10 10 13 19 19 20 14 Protection 9 | . 12 11 21 22 20 11 14 . . . . . . 2 5 2 5 5 5 5 5 4 4 4 4 2 Ballistic Gun 11 | . 28 28 21 22 22 22 17 . . . . . . . . . . . . . . . . . . . Impact Weapon 1 | . . . . . . . . 7 4 6 6 6 1 . . . . . . . . . . . . . Naked Turns . | . . . . . . . . . . . . . . . . . . . . . . . . . . . Heaviest Build 103 | 12 42 42 55 51 97 97 100 103 20 18 16 16 21 34 30 30 20 20 23 29 29 40 44 44 44 44 Greatest Support 80 | 40 40 40 60 60 60 60 80 80 25 29 19 19 24 42 42 33 48 43 43 52 52 69 69 69 69 78 Greatest Overweight (x) 17 | . 2 1 17 . 1 1 1 5 4 5 . . 1 . . . . . . . . . . . . . Average Overweight (x) . | . . . 1 . . 1 1 . . . . . . . . . . . . . . . . . . . Largest Inventory Capacity 32 | 6 12 12 12 12 32 24 24 28 8 8 8 8 8 8 8 8 4 4 4 4 4 4 4 4 4 4 Average Capacity 10 | 6 11 12 12 12 13 24 24 8 8 8 8 8 8 8 8 6 4 4 4 4 4 4 4 4 4 4 Most Carried 24 | 6 12 12 12 12 13 17 24 24 8 8 6 6 6 8 8 8 3 4 4 4 4 4 4 4 4 4 Average Carried 9 | 5 10 11 11 12 12 15 22 8 6 7 6 6 6 6 8 6 3 3 3 3 4 4 3 4 4 3 Final Capacity 24 | 6 12 12 12 12 24 24 24 8 8 8 8 8 8 8 8 4 4 4 4 4 4 4 4 4 4 4 Final Carried 24 | 5 12 11 12 12 13 17 24 7 8 6 6 6 6 8 8 3 3 4 4 4 4 4 4 4 4 3 Class Distribution -------------------- 29% | Mutant 18% | Hacker-Sprinter 14% | Scavenger-Mutant 13% | Hacker-Mutant 8% | Hacker-Scout 7% | Hauler-Mutant 4% | Wizard-Scout 3% | Scavenger-Sprinter Dominant Class ---------------- Mutant | -10/Materials Mutant | -10/Mines Mutant | -9/Materials Mutant | -9/Mines Scavenger-Mutant | -9/Exiles Hauler-Mutant | -8/Mines Scavenger-Mutant | -8/Materials Hacker-Sprinter | -7/Factory Hacker-Mutant | -6/Factory Hacker-Sprinter | -6/Lower Caves Hacker-Sprinter | -6/Lower Caves Hacker-Sprinter | -6/Data Miner Hacker-Sprinter | -5/Proximity Caves Hacker-Sprinter | -5/Factory Hacker-Sprinter | -5/Extension Hacker-Mutant | -5/Cetus Hacker-Mutant | -4/Factory Hacker-Scout | -4/Upper Caves Hacker-Scout | -4/Upper Caves Hacker-Scout | -4/Warlord Hacker-Scout | -3/Proximity Caves Hacker-Scout | -3/Research Hacker-Scout | -3/Armory Hacker-Scout | -3/Lab Wizard-Scout | -2/Research Wizard-Scout | -1/Access Resources | -11 -10 -10 -9 -9 -9 -8 -8 -7 -6 -6 -6 -6 -5 -5 -5 -5 -4 -4 -4 -4 -3 -3 -3 -3 -2 -1 ----------- Run | Scr Mat Min Mat Min Exi Min Mat Fac Fac Low Low Dat Pro Fac Ext Cet Fac Upp Upp War Pro Res Arm Lab Res Acc Matter Collected 3231 | 254 306 65 740 50 98 258 582 251 160 49 52 . 85 109 11 20 55 28 18 . . . 40 . . . Remotely 10 | 10 . . . . . . . . . . . . . . . . . . . . . . . . . . Salvage Created 5196 | 96 457 142 1489 34 125 497 1240 251 304 . . . . 109 357 . 55 . . . . . 40 . . . Parts 281 | 3 32 8 79 7 4 20 71 6 17 . . . . 11 13 . 6 . . . . . 4 . . . Haulers Intercepted 11 | . . . 4 . . . 4 2 . . . . . 1 . . . . . . . . . . . . Recyclers Shooed 3 | . 1 . 1 . . 1 . . . . . . . . . . . . . . . . . . . . Parts Field Recycled . | . . . . . . . . . . . . . . . . . . . . . . . . . . . Retrieved Matter . | . . . . . . . . . . . . . . . . . . . . . . . . . . . Parts Self-Destructed 8 | . . . . . . . . . . . 3 . . . . . . . 5 . . . . . . . Prevented 6 | . . . . . . . . . . . . . . . . . . . . 6 . . . . . . Kills | -11 -10 -10 -9 -9 -9 -8 -8 -7 -6 -6 -6 -6 -5 -5 -5 -5 -4 -4 -4 -4 -3 -3 -3 -3 -2 -1 ------- Run | Scr Mat Min Mat Min Exi Min Mat Fac Fac Low Low Dat Pro Fac Ext Cet Fac Upp Upp War Pro Res Arm Lab Res Acc Combat Hostiles Destroyed 88 | . 7 7 27 3 1 8 23 . 8 . . . . . 4 . . . . . . . . . . . Melee 8 | . . 1 . . . . . . 3 . . . . . 4 . . . . . . . . . . . Guns 79 | . 7 6 27 3 1 8 23 . 4 . . . . . . . . . . . . . . . . . Classes Destroyed 15 | 1 3 1 4 1 1 1 1 . 1 . . . . . 1 . . . . . . . . . . . Worker 2 | . . . . . . . 1 . . . . . . . . . 1 . . . . . . . . . Builder 1 | . . . . . . . . . . . . . . . 1 . . . . . . . . . . . Tunneler 1 | . . . . 1 . . . . . . . . . . . . . . . . . . . . . . Hauler 11 | . . . 4 . . . 4 2 . . . . . 1 . . . . . . . . . . . . Recycler 10 | 1 2 . 4 . . 2 . 1 . . . . . . . . . . . . . . . . . . Operator 5 | . . . 2 . . . 1 . 1 . . . . 1 . . . . . . . . . . . . Watcher 14 | . 2 . 3 . . . 2 2 1 . . . . . 2 . 1 . . . . . 1 . . . Swarmer 36 | . 3 4 11 3 . 3 6 . 6 . . . . . . . . . . . . . . . . . Grunt 32 | . 4 2 9 . . 3 12 . . . . . . . 2 . . . . . . . . . . . Brawler 2 | . . . . . . 1 1 . . . . . . . . . . . . . . . . . . . Duelist 1 | . . . 1 . . . . . . . . . . . . . . . . . . . . . . . Sentry 11 | . . . 6 . . . 4 . . . . . . . 1 . . . . . . . . . . . Demolisher 1 | . . 1 . . . . . . . . . . . . . . . . . . . . . . . . Hunter 3 | . . . . . 1 1 . . 1 . . . . . . . . . . . . . . . . . Programmer 2 | . . . . . . . . . 1 . . . . . 1 . . . . . . . . . . . Best Kill Streak 6 | 1 4 2 4 3 1 4 6 1 4 . . . . 1 2 . 1 . . . . . 1 . . . Combat Bots Only 6 | . 4 2 4 3 1 4 6 . 4 . . . . . 2 . . . . . . . . . . . Max Kills in Single Turn 2 | 1 1 1 2 2 1 1 2 1 1 . . . . 1 1 . 1 . . . . . 1 . . . Gunslinging 1 | . . . 1 1 . . . . . . . . . . . . . . . . . . . . . . Exploded . | . . . . . . . . . . . . . . . . . . . . . . . . . . . Melee 1 | . . 1 . . . . . . 1 . . . . . 1 . . . . . . . . . . . Uniques/NPCs Destroyed . | . . . . . . . . . . . . . . . . . . . . . . . . . . . Combat | -11 -10 -10 -9 -9 -9 -8 -8 -7 -6 -6 -6 -6 -5 -5 -5 -5 -4 -4 -4 -4 -3 -3 -3 -3 -2 -1 -------- Run | Scr Mat Min Mat Min Exi Min Mat Fac Fac Low Low Dat Pro Fac Ext Cet Fac Upp Upp War Pro Res Arm Lab Res Acc Damage Taken 9546 | . 250 738 1110 22 . 220 704 61 1044 278 59 74 253 . 459 677 . . . . 184 270 167 42 24 2910 Core 3294 | . 82 146 148 . . 12 51 23 413 99 31 36 132 . 122 296 . . . . 62 . 28 . . 1613 Absorbed by Shields 36 | . . . . . . . . . . . . . . . 16 20 . . . . . . . . . . Core Remaining (%) 71 | 100 . 8 . . . 60 90 96 . . . . 16 . . 58 . . . . 94 . . 97 100 . Volleys Fired 272 | 2 33 28 86 2 17 20 71 . 12 . . . . . . . . . 1 . . . . . . . Largest 2 | 2 2 2 2 2 2 2 2 . 1 . . . . . . . . . 1 . . . . . . . Hottest 60 | 40 40 40 60 46 51 51 51 . 60 . . . . . . . . . . . . . . . . . Shots Fired 530 | 4 66 55 172 4 34 40 142 . 12 . . . . . . . . . 1 . . . . . . . Gun 529 | 4 66 55 172 4 34 40 142 . 12 . . . . . . . . . . . . . . . . . Cannon . | . . . . . . . . . . . . . . . . . . . . . . . . . . . Launcher . | . . . . . . . . . . . . . . . . . . . . . . . . . . . Special 1 | . . . . . . . . . . . . . . . . . . . 1 . . . . . . . Kinetic 523 | 4 66 55 168 4 34 40 142 . 10 . . . . . . . . . . . . . . . . . Thermal . | . . . . . . . . . . . . . . . . . . . . . . . . . . . Explosive . | . . . . . . . . . . . . . . . . . . . . . . . . . . . Electromagnetic 6 | . . . 4 . . . . . 2 . . . . . . . . . . . . . . . . . Robot Hit Streak 36 | 4 14 29 21 9 34 18 36 . 5 . . . . . . . . . . . . . . . . . Robot Miss Streak 3 | . 1 1 3 . 1 1 1 . 2 . . . . . . . . . . . . . . . . . Penetration Max 1 | . . . . . . . 1 . . . . . . . . . . . . . . . . . . . Secondary Targets 8 | . . . 5 1 . 1 1 . . . . . . . . . . . . . . . . . . . Max Gunslinging Chain 1 | . . . 1 1 . 1 1 . . . . . . . . . . . . . . . . . . . Shots Hit Robots 473 | 4 52 49 134 3 30 32 112 10 23 . . 1 . 2 17 . 3 . . . . . 1 . . . Core Hits 209 | 3 27 17 56 3 10 14 49 1 12 . . . . 2 8 . 2 . . . . . 1 . . 4 Critical Hits 6 | . . . 1 . . 2 3 . . . . . . . . . . . . . . . . . . . Critical Kills 5 | . . . 1 . . 1 3 . . . . . . . . . . . . . . . . . . . Critical Parts Destroyed 1 | . . . . . . 1 . . . . . . . . . . . . . . . . . . . . Melee Attacks 196 | . . . . . . . 2 42 39 12 . 9 . 9 32 . 4 . 1 . . 19 11 3 5 8 Impact 104 | . . . . . . . 2 42 39 12 . 9 . . . . . . . . . . . . . . Slashing 92 | . . . . . . . . . . . . . . 9 32 . 4 . 1 . . 19 11 3 5 8 Piercing . | . . . . . . . . . . . . . . . . . . . . . . . . . . . Sneak Attacks 13 | . . . . . . . . 4 2 . . 1 . 2 2 . 2 . . . . . . . . . Combat Hostiles 1 | . . . . . . . . . . . . . . . 1 . . . . . . . . . . . Follow-up Attacks . | . . . . . . . . . . . . . . . . . . . . . . . . . . . Damage Inflicted 9104 | 33 414 410 1875 81 407 506 2171 521 723 . . 132 . 323 1117 . 323 . . . . . 54 . . 14 Guns 5969 | 33 414 379 1865 47 407 506 2160 . 158 . . . . . . . . . . . . . . . . . Cannons . | . . . . . . . . . . . . . . . . . . . . . . . . . . . Explosions . | . . . . . . . . . . . . . . . . . . . . . . . . . . . Melee 3035 | . . . . . . . . 521 565 . . 132 . 323 1117 . 323 . . . . . 54 . . . Ramming 100 | . . 31 10 34 . . 11 . . . . . . . . . . . . . . . . . . 14 Kinetic 5884 | 33 414 379 1818 47 407 506 2160 . 120 . . . . . . . . . . . . . . . . . Thermal . | . . . . . . . . . . . . . . . . . . . . . . . . . . . Explosive . | . . . . . . . . . . . . . . . . . . . . . . . . . . . Electromagnetic 85 | . . . 47 . . . . . 38 . . . . . . . . . . . . . . . . . Impact 1218 | . . . . . . . . 521 565 . . 132 . . . . . . . . . . . . . . Slashing 1817 | . . . . . . . . . . . . . . 323 1117 . 323 . . . . . 54 . . . Piercing . | . . . . . . . . . . . . . . . . . . . . . . . . . . . Highest Corruption 3 | . . . . . . . . . . . . . . . 2 2 . . . . . 1 1 1 . 3 Average Corruption 1 | . . . . . . . . . . . . . . . 2 2 . . . . . 1 1 1 . 1 Corruption Purged . | . . . . . . . . . . . . . . . . . . . . . . . . . . . Effects 6 | . . . . . . . . . . . . . . . 3 . . . . . . 2 . 1 . . Message Errors 2 | . . . . . . . . . . . . . . . 2 . . . . . . . . . . . Data Loss (minor) 3 | . . . . . . . . . . . . . . . . . . . . . . 2 . 1 . . Targeting Errors 1 | . . . . . . . . . . . . . . . 1 . . . . . . . . . . . Overload Shots . | . . . . . . . . . . . . . . . . . . . . . . . . . . . Overflow Damage 667 | . . . . . . . . 122 86 . . 122 . . 263 . 74 . . . . . . . . . Projectiles . | . . . . . . . . . . . . . . . . . . . . . . . . . . . Explosions . | . . . . . . . . . . . . . . . . . . . . . . . . . . . Melee 667 | . . . . . . . . 122 86 . . 122 . . 263 . 74 . . . . . . . . . Knockbacks 6 | . . . . . . . . 2 3 . . 1 . . . . . . . . . . . . . . Impact 6 | . . . . . . . . 2 3 . . 1 . . . . . . . . . . . . . . Kinetic . | . . . . . . . . . . . . . . . . . . . . . . . . . . . Secondary . | . . . . . . . . . . . . . . . . . . . . . . . . . . . Self-Inflicted Damage 6 | . . . . . . . . . . . . . . . . . . . . . . . . . . 6 Shots . | . . . . . . . . . . . . . . . . . . . . . . . . . . . Rammed 18 | . . 7 3 1 . . 1 . . . . . . . . . . . . . . . . . . 6 Targets Rammed 20 | . . 8 3 2 . . 1 . . . . . . . . . . . . . . . . . . 6 Kicked . | . . . . . . . . . . . . . . . . . . . . . . . . . . . Crushed 2 | . . 1 . 1 . . . . . . . . . . . . . . . . . . . . . . Highest Temperature 122 | . 72 122 90 6 85 27 96 . 2 . . . . . 11 . . . . . 8 97 87 8 . . Average Temperature 28 | . 17 35 24 3 36 14 27 . 1 . . . . . 3 . . . . . 5 35 32 5 . . Received Heat Transfer 1742 | . 144 156 315 . . 45 396 6 42 72 36 12 39 . 92 144 . . . . 39 27 60 . 9 108 Siege Activations . | . . . . . . . . . . . . . . . . . . . . . . . . . . . Robots Corrupted . | . . . . . . . . . . . . . . . . . . . . . . . . . . . Combat Hostiles . | . . . . . . . . . . . . . . . . . . . . . . . . . . . Parts Fried 16 | . . . . . . . . 4 8 . . . . . 4 . . . . . . . . . . . Impact Corruptions 17 | . . . . . . . . 7 8 . . 2 . . . . . . . . . . . . . . Robots Melted . | . . . . . . . . . . . . . . . . . . . . . . . . . . . Combat Hostiles . | . . . . . . . . . . . . . . . . . . . . . . . . . . . Parts Melted . | . . . . . . . . . . . . . . . . . . . . . . . . . . . Heat Transferred . | . . . . . . . . . . . . . . . . . . . . . . . . . . . Parts Sabotaged . | . . . . . . . . . . . . . . . . . . . . . . . . . . . Parts Stolen . | . . . . . . . . . . . . . . . . . . . . . . . . . . . Parts Stripped . | . . . . . . . . . . . . . . . . . . . . . . . . . . . Power Chain Reactions . | . . . . . . . . . . . . . . . . . . . . . . . . . . . Missiles Intercepted . | . . . . . . . . . . . . . . . . . . . . . . . . . . . Alert | -11 -10 -10 -9 -9 -9 -8 -8 -7 -6 -6 -6 -6 -5 -5 -5 -5 -4 -4 -4 -4 -3 -3 -3 -3 -2 -1 ------- Run | Scr Mat Min Mat Min Exi Min Mat Fac Fac Low Low Dat Pro Fac Ext Cet Fac Upp Upp War Pro Res Arm Lab Res Acc Peak Influence 470 | 5 122 115 234 82 . 239 428 114 199 . . . . 470 345 190 108 . . . . 337 368 . 30 440 Initial 168 | . 2 15 13 77 . . 34 9 13 . . . . 5 116 168 61 . . . . 17 98 . . 15 Average 81 | 2 37 28 65 63 . 111 151 39 63 . . . . 156 164 141 71 . . . . 119 198 . 5 172 Maximum Alert Level 2 | . . . 1 . . 1 2 . . . . . . 2 1 . . . . . . 1 1 . . 2 Low Security (%) 90 | 100 100 100 98 100 . 69 66 100 100 . . . . 61 78 100 100 . . . . 78 46 . 100 62 Level 1 8 | . . . 1 . . 30 31 . . . . . . 19 21 . . . . . . 21 53 . . 24 Level 2 1 | . . . . . . . 2 . . . . . . 19 . . . . . . . . . . . 12 Level 3 . | . . . . . . . . . . . . . . . . . . . . . . . . . . . Level 4 . | . . . . . . . . . . . . . . . . . . . . . . . . . . . Level 5 . | . . . . . . . . . . . . . . . . . . . . . . . . . . . High Security . | . . . . . . . . . . . . . . . . . . . . . . . . . . . Max Security . | . . . . . . . . . . . . . . . . . . . . . . . . . . . Squads Dispatched 34 | . . . 4 . . . 3 2 3 . . . 1 1 . 1 1 . . . . 6 3 . 1 8 Investigation 10 | . . . . . . . 2 . . . . . . . . 1 . . . . . 5 1 . . 1 Extermination 6 | . . . . . . . . 1 1 . . . . 1 . . 1 . . . . 1 . . . 1 Reinforcement 12 | . . . 4 . . . 1 . 2 . . . . . . . . . . . . . 2 . 1 2 Assault 1 | . . . . . . . . . . . . . 1 . . . . . . . . . . . . . Garrison 2 | . . . . . . . . 1 . . . . . . . . . . . . . . . . . 1 Intercept 3 | . . . . . . . . . . . . . . . . . . . . . . . . . . 3 Construction Impeded . | . . . . . . . . . . . . . . . . . . . . . . . . . . . Haulers Reinforced 2 | . . . . . . . . . 1 . . . . . . . . . . . . . . . 1 . Stealth | -11 -10 -10 -9 -9 -9 -8 -8 -7 -6 -6 -6 -6 -5 -5 -5 -5 -4 -4 -4 -4 -3 -3 -3 -3 -2 -1 --------- Run | Scr Mat Min Mat Min Exi Min Mat Fac Fac Low Low Dat Pro Fac Ext Cet Fac Upp Upp War Pro Res Arm Lab Res Acc Distress Signals 18 | . 1 . 2 . . . 1 1 4 . . . . . 2 2 . . . . . 1 1 . 2 1 Communications Jammed . | . . . . . . . . . . . . . . . . . . . . . . . . . . . Distress Signals . | . . . . . . . . . . . . . . . . . . . . . . . . . . . Times Spotted 327 | . 16 11 42 3 . 14 32 9 30 8 8 4 23 1 23 10 1 . . . 5 22 13 1 1 50 Peak Tracking Total 19 | . 5 3 5 3 . 3 5 3 5 8 4 4 19 2 6 7 1 . . . 5 11 8 1 2 17 Tactical Retreats 50 | . . 1 3 . . 5 3 3 8 . 3 . 2 . 3 2 . . . . 1 5 3 . . 8 Traps | -11 -10 -10 -9 -9 -9 -8 -8 -7 -6 -6 -6 -6 -5 -5 -5 -5 -4 -4 -4 -4 -3 -3 -3 -3 -2 -1 ------- Run | Scr Mat Min Mat Min Exi Min Mat Fac Fac Low Low Dat Pro Fac Ext Cet Fac Upp Upp War Pro Res Arm Lab Res Acc Traps Triggered 9 | . . . 1 . . . . 2 2 . . . . . . . . . . . . 2 1 . . 1 Indirectly . | . . . . . . . . . . . . . . . . . . . . . . . . . . . Trap Hack Attempts . | . . . . . . . . . . . . . . . . . . . . . . . . . . . Triggered . | . . . . . . . . . . . . . . . . . . . . . . . . . . . Disarmed . | . . . . . . . . . . . . . . . . . . . . . . . . . . . Reprogrammed . | . . . . . . . . . . . . . . . . . . . . . . . . . . . Reused . | . . . . . . . . . . . . . . . . . . . . . . . . . . . Traps Extracted . | . . . . . . . . . . . . . . . . . . . . . . . . . . . Installed . | . . . . . . . . . . . . . . . . . . . . . . . . . . . Triggered 7 | . . . . . . . . . . . 2 . . . . . . . . 5 . . . . . . Machines | -11 -10 -10 -9 -9 -9 -8 -8 -7 -6 -6 -6 -6 -5 -5 -5 -5 -4 -4 -4 -4 -3 -3 -3 -3 -2 -1 ---------- Run | Scr Mat Min Mat Min Exi Min Mat Fac Fac Low Low Dat Pro Fac Ext Cet Fac Upp Upp War Pro Res Arm Lab Res Acc Machines Disabled 10 | . . . 1 . . 1 1 . . . . 1 . . 1 . . . 1 . . . 3 1 . . Max in Single Turn 1 | . . . 1 . . 1 1 . . . . 1 . . 1 . . . 1 . . . 1 1 . . Garrison Access 6 | . . . . . . . . 2 3 . . . . . . . . . . . . . . . 1 . Machines Sabotaged . | . . . . . . . . . . . . . . . . . . . . . . . . . . . Garrisons Compromised . | . . . . . . . . . . . . . . . . . . . . . . . . . . . Overloaded Fab Kills . | . . . . . . . . . . . . . . . . . . . . . . . . . . . Fab Network Shutdowns 1 | . . . . . . . . . . . . . . 1 . . . . . . . . . . . . Hacking | -11 -10 -10 -9 -9 -9 -8 -8 -7 -6 -6 -6 -6 -5 -5 -5 -5 -4 -4 -4 -4 -3 -3 -3 -3 -2 -1 --------- Run | Scr Mat Min Mat Min Exi Min Mat Fac Fac Low Low Dat Pro Fac Ext Cet Fac Upp Upp War Pro Res Arm Lab Res Acc Machines Accessed 106 | . 7 . 5 . 5 . 11 9 14 1 . 4 . 8 9 3 2 . . 7 . 9 5 2 2 3 Terminals 69 | . 7 . 4 . . . 8 6 8 . . . . 5 9 3 1 . . . . 9 5 . 1 3 Fabricators 5 | . . . . . . . . . 2 . . . . 2 . . 1 . . . . . . . . . Repair Stations 1 | . . . . . . . . 1 . . . . . . . . . . . . . . . . . . Recycling Units 3 | . . . . . . . 2 . 1 . . . . . . . . . . . . . . . . . Scanalyzers 3 | . . . 1 . . . 1 . . . . . . 1 . . . . . . . . . . . . Garrison Access 6 | . . . . . . . . 2 3 . . . . . . . . . . . . . . . 1 . Total Hacks 356 | . 26 . 23 . 50 . 31 24 32 1 . 28 . 25 16 8 6 . . 17 . 24 15 21 3 6 Successful 271 | . 20 . 17 . 50 . 19 15 20 1 . 28 . 21 12 5 4 . . 17 . 6 12 21 2 1 Failed 84 | . 5 . 6 . . . 12 9 12 . . . . 4 4 3 2 . . . . 18 3 . 1 5 Catastrophic 9 | . . . 1 . . . 1 . 1 . . . . . . . . . . . . 6 . . . . Database Lockouts 1 | . 1 . . . . . . . . . . . . . . . . . . . . . . . . . Manual 137 | . 15 . 10 . 3 . 22 16 17 . . . . 6 8 1 3 . 1 1 . 13 13 . 2 6 Terminals 197 | . 26 . 15 . . . 28 20 24 . . . . 11 16 8 2 . . . . 24 15 . 2 6 Fabricators 11 | . . . . . . . . . 3 . . . . 4 . . 4 . . . . . . . . . Repair Stations 2 | . . . . . . . . 2 . . . . . . . . . . . . . . . . . . Recycling Units 3 | . . . . . . . 2 . 1 . . . . . . . . . . . . . . . . . Scanalyzers 19 | . . . 8 . . . 1 . . . . . . 10 . . . . . . . . . . . . Garrison Access 7 | . . . . . . . . 2 4 . . . . . . . . . . . . . . . 1 . Terminal Hacks 197 | . 12 . 5 . 50 . 13 8 9 1 . 28 . 6 9 5 . . . 17 . 5 6 21 1 1 Record 102 | . . . . . 49 . 1 . . . . 11 . . . 4 . . . 15 . 1 . 21 . . Part Schematic 13 | . 2 . . . . . 2 2 . . . 6 . 1 . . . . . . . . . . . . Robot Schematic 8 | . . . . . . . . . . . . 8 . . . . . . . . . . . . . . Robot Analysis 2 | . 1 . . . . . . . 1 . . . . . . . . . . . . . . . . . Prototype ID Bank 8 | . 1 . 1 . . . 1 . 1 . . 3 . 1 . . . . . . . . . . . . Open Door 10 | . . . . . . . . . . 1 . . . . 6 1 . . . 2 . . . . . . Level Access Points 3 | . . . . . . . . 1 . . . . . . . . . . . . . . . . 1 1 Branch Access Points 6 | . . . 1 . . . 1 1 1 . . . . 1 . . . . . . . 1 . . . . Terminal Index 8 | . 1 . 1 . . . 1 1 1 . . . . 1 1 . . . . . . . 1 . . . Fabricator Index 3 | . . . . . . . . . 2 . . . . 1 . . . . . . . . . . . . Unreport Threat 2 | . . . . . . . 2 . . . . . . . . . . . . . . . . . . . Locate Traps 1 | . 1 . . . . . . . . . . . . . . . . . . . . . . . . . Recall Investigation 2 | . . . . . . . . . . . . . . . . . . . . . . 2 . . . . Recall Extermination 2 | . . . . . . . . 1 . . . . . 1 . . . . . . . . . . . . Hauler Manifests 2 | . 1 . 1 . . . . . . . . . . . . . . . . . . . . . . . Zone Layout 24 | . 5 . 1 . . . 5 2 3 . . . . . 2 . . . . . . 1 5 . . . EX-Prototype ID Bank 1 | . . . . . 1 . . . . . . . . . . . . . . . . . . . . . Fabricator Hacks 8 | . . . . . . . . . 2 . . . . 4 . . 2 . . . . . . . . . Load Schematic 4 | . . . . . . . . . 1 . . . . 2 . . 1 . . . . . . . . . Build 4 | . . . . . . . . . 1 . . . . 2 . . 1 . . . . . . . . . Repair Station Hacks . | . . . . . . . . . . . . . . . . . . . . . . . . . . . Recycling Unit Hacks 1 | . . . . . . . . . 1 . . . . . . . . . . . . . . . . . Retrieve Components 1 | . . . . . . . . . 1 . . . . . . . . . . . . . . . . . Scanalyzer 19 | . . . 8 . . . 1 . . . . . . 10 . . . . . . . . . . . . Insert Component 10 | . . . 4 . . . 1 . . . . . . 5 . . . . . . . . . . . . Analyze 9 | . . . 4 . . . . . . . . . . 5 . . . . . . . . . . . . Garrison Access Hacks 6 | . . . . . . . . 2 3 . . . . . . . . . . . . . . . 1 . Seal Access 6 | . . . . . . . . 2 3 . . . . . . . . . . . . . . . 1 . Unauthorized Hacks 40 | . 8 . 4 . . . 5 5 5 . . . . 1 3 . 2 . . . . 1 6 . . . Terminals 36 | . 8 . 4 . . . 3 4 5 . . . . 1 3 . 1 . . . . 1 6 . . . Track 20 | . 6 . 2 . . . 3 2 2 . . . . . 2 . . . . . . . 3 . . . Assimilate 5 | . . . . . . . . . 1 . . . . 1 1 . 1 . . . . 1 . . . . Botnet 9 | . 2 . 2 . . . . 1 2 . . . . . . . . . . . . . 2 . . . Operators 2 | . . . . . . . . 1 . . . . . . . . . . . . . . 1 . . . Fabricators 1 | . . . . . . . . . . . . . . . . . 1 . . . . . . . . . Siphon 1 | . . . . . . . . . . . . . . . . . 1 . . . . . . . . . Repair Stations 1 | . . . . . . . . 1 . . . . . . . . . . . . . . . . . . Mechanics 1 | . . . . . . . . 1 . . . . . . . . . . . . . . . . . . Recycling Units 2 | . . . . . . . 2 . . . . . . . . . . . . . . . . . . . Tunnel 2 | . . . . . . . 2 . . . . . . . . . . . . . . . . . . . Scanalyzers . | . . . . . . . . . . . . . . . . . . . . . . . . . . . Garrison Access . | . . . . . . . . . . . . . . . . . . . . . . . . . . . Data Cores Recovered . | . . . . . . . . . . . . . . . . . . . . . . . . . . . Used . | . . . . . . . . . . . . . . . . . . . . . . . . . . . Hacking Detections 68 | . 6 . 5 . . . 7 6 9 . . . . 8 5 3 2 . . . . 9 4 . 1 3 Full Trace Events 8 | . . . . . . . . . . . . . . . . 1 . . . . . 5 1 . . 1 Feedback Events 1 | . . . . . . . . . . . . . . . . . . . . . . 1 . . . . Corruption 1 | . . . . . . . . . . . . . . . . . . . . . . 1 . . . . Feedback Blocked . | . . . . . . . . . . . . . . . . . . . . . . . . . . . Robot Schematics Acquired 8 | . . . . . . . . . . . . 8 . . . . . . . . . . . . . . Robots Built . | . . . . . . . . . . . . . . . . . . . . . . . . . . . Matter . | . . . . . . . . . . . . . . . . . . . . . . . . . . . Time . | . . . . . . . . . . . . . . . . . . . . . . . . . . . Total Robot Build Rating . | . . . . . . . . . . . . . . . . . . . . . . . . . . . Part Schematics Acquired 21 | . 2 . 4 . . . 2 1 . . . 6 . 6 . . . . . . . . . . . . Parts Built 4 | . . . . . . . . . 1 . . . . 2 . . 1 . . . . . . . . . Matter 929 | . . . . . . . . . 146 . . . . 570 . . 213 . . . . . . . . . Time 328 | . . . . . . . . . 24 . . . . 152 . . 152 . . . . . . . . . Total Part Build Rating 18 | . . . . . . . . . 3 . . . . 10 . . 5 . . . . . . . . . Parts Repaired . | . . . . . . . . . . . . . . . . . . . . . . . . . . . Time . | . . . . . . . . . . . . . . . . . . . . . . . . . . . Parts Recycled . | . . . . . . . . . . . . . . . . . . . . . . . . . . . Recycled Matter . | . . . . . . . . . . . . . . . . . . . . . . . . . . . Retrieved Matter . | . . . . . . . . . . . . . . . . . . . . . . . . . . . Retrieved Components 2 | . . . . . . . . . 2 . . . . . . . . . . . . . . . . . Parts Scanalyzed 9 | . . . 4 . . . . . . . . . . 5 . . . . . . . . . . . . Part Schematics Acquired 9 | . . . 4 . . . . . . . . . . 5 . . . . . . . . . . . . Parts Damaged . | . . . . . . . . . . . . . . . . . . . . . . . . . . . Bothacking | -11 -10 -10 -9 -9 -9 -8 -8 -7 -6 -6 -6 -6 -5 -5 -5 -5 -4 -4 -4 -4 -3 -3 -3 -3 -2 -1 ------------ Run | Scr Mat Min Mat Min Exi Min Mat Fac Fac Low Low Dat Pro Fac Ext Cet Fac Upp Upp War Pro Res Arm Lab Res Acc Used RIF Installer . | . . . . . . . . . . . . . . . . . . . . . . . . . . . Robots Hacked . | . . . . . . . . . . . . . . . . . . . . . . . . . . . Non-combat . | . . . . . . . . . . . . . . . . . . . . . . . . . . . Combat . | . . . . . . . . . . . . . . . . . . . . . . . . . . . Robot Hacks Applied . | . . . . . . . . . . . . . . . . . . . . . . . . . . . Relay Couplers Released . | . . . . . . . . . . . . . . . . . . . . . . . . . . . Robots Rewired 1 | . . . . . 1 . . . . . . . . . . . . . . . . . . . . . Allies Hacked . | . . . . . . . . . . . . . . . . . . . . . . . . . . . Hacks Repelled . | . . . . . . . . . . . . . . . . . . . . . . . . . . . Allies | -11 -10 -10 -9 -9 -9 -8 -8 -7 -6 -6 -6 -6 -5 -5 -5 -5 -4 -4 -4 -4 -3 -3 -3 -3 -2 -1 -------- Run | Scr Mat Min Mat Min Exi Min Mat Fac Fac Low Low Dat Pro Fac Ext Cet Fac Upp Upp War Pro Res Arm Lab Res Acc Total Allies 26 | . . . . . 1 . . . 1 . . . . 1 10 1 . . . . . 4 . . . 8 Largest Group 8 | . . . . . 1 1 . . 1 . . . . 1 6 3 . . . . . 3 . . . 8 Highest-Rated Group 238 | . . . . . 8 8 . . 26 . . . . 10 238 173 . . . . . 138 . . . 117 Highest-Rated Ally 156 | . . . . . 8 8 . . 26 . . . . 10 156 141 . . . . . 46 . . . 15 Total Orders . | . . . . . . . . . . . . . . . . . . . . . . . . . . . Ally Attacks 101 | . . . . . . . . . . . . . . . 44 10 . . . . . 19 . . . 28 Total Damage 2171 | . . . . . . . . . . . . . . . 958 252 . . . . . 314 . . . 647 Kills 10 | . . . . . . . . . . . . . . . 6 1 . . . . . 1 . . . 2 Allies Corrupted 2 | . . . . . . . . . . . . . . . . . . . . . . 1 . . . 1 Allies Melted . | . . . . . . . . . . . . . . . . . . . . . . . . . . . Intel | -11 -10 -10 -9 -9 -9 -8 -8 -7 -6 -6 -6 -6 -5 -5 -5 -5 -4 -4 -4 -4 -3 -3 -3 -3 -2 -1 ------- Run | Scr Mat Min Mat Min Exi Min Mat Fac Fac Low Low Dat Pro Fac Ext Cet Fac Upp Upp War Pro Res Arm Lab Res Acc Robot Analysis Total 2 | . 1 . . . . . . . 1 . . . . . . . . . . . . . . . . . Derelict Logs Recovered 9 | . . 2 . 1 . . . . . 2 1 . 1 . . . . 1 1 . . . . . . . Drone Launches . | . . . . . . . . . . . . . . . . . . . . . . . . . . . Drone Recoveries . | . . . . . . . . . . . . . . . . . . . . . . . . . . . Exploration | -11 -10 -10 -9 -9 -9 -8 -8 -7 -6 -6 -6 -6 -5 -5 -5 -5 -4 -4 -4 -4 -3 -3 -3 -3 -2 -1 ------------- Run | Scr Mat Min Mat Min Exi Min Mat Fac Fac Low Low Dat Pro Fac Ext Cet Fac Upp Upp War Pro Res Arm Lab Res Acc Turns Passed 16326 | 52 1038 1108 2621 535 1016 629 1202 1455 2022 611 134 79 159 495 651 118 277 87 142 277 56 442 232 128 349 411 Spaces Moved 15787 | 21 462 550 922 328 565 279 445 1833 2096 584 312 125 271 1011 970 236 222 232 336 765 171 1144 520 125 426 836 Core 490 | . . . 56 . . . . 4 274 1 . . . . . . . . . . . . . . . 155 Treads 3523 | 21 462 550 866 328 565 279 445 7 . . . . . . . . . . . . . . . . . . Legs . | . . . . . . . . . . . . . . . . . . . . . . . . . . . Wheels . | . . . . . . . . . . . . . . . . . . . . . . . . . . . Hover 78 | . . . . . . . . . 75 . . . . . . . . . . . . . . . . 3 Flight 11696 | . . . . . . . . 1822 1747 583 312 125 271 1011 970 236 222 232 336 765 171 1144 520 125 426 678 Fastest Speed 24 | 160 160 160 160 160 160 180 182 31 31 28 32 32 30 28 29 32 32 37 37 30 30 28 28 28 28 24 Average Speed 67 | 160 177 179 218 160 162 180 182 33 43 29 32 32 36 31 29 33 36 37 37 33 30 28 28 28 28 31 Slowest Speed 900 | 160 200 180 900 160 180 183 182 431 250 300 32 32 100 40 32 34 37 37 37 37 30 30 28 28 28 70 Overloaded Moves . | . . . . . . . . . . . . . . . . . . . . . . . . . . . Propulsion Burnouts . | . . . . . . . . . . . . . . . . . . . . . . . . . . . Robots Hopped 77 | . . . . . . . . 5 16 2 . . 4 1 3 3 . . . 2 1 5 6 . . 29 Cave-ins Triggered . | . . . . . . . . . . . . . . . . . . . . . . . . . . . Exploration Rate (%) 55 | 3 69 92 70 54 94 76 52 36 45 58 57 79 56 23 87 75 8 51 54 94 39 34 49 100 12 20 Regions Visited 26 Branch Regions 16 Pre-discovered Areas 8 | . . 2 . 1 1 . 2 . . . 1 1 . . . . . . . . . . . . . . Known Exits Taken 21 | . 1 . 1 1 . . . 1 1 1 1 1 1 1 1 1 1 1 1 1 1 1 1 1 1 . Unknown Exits Taken 5 | 1 . 1 . . 1 1 1 . . . . . . . . . . . . . . . . . . . Scrap Searched 15 | . . 2 . 1 . 2 . . . 2 3 . 2 . . . . 1 2 . . . . . . . Spaces Dug 115 | . . . . . . . 2 27 19 11 . 4 . 7 6 . 1 . . . . 19 6 . 5 8 Terrain Destroyed 123 | . . . . . . 8 2 27 19 11 . 4 . 7 6 . 1 . . . . 19 6 . 5 8 Melee 115 | . . . . . . . 2 27 19 11 . 4 . 7 6 . 1 . . . . 19 6 . 5 8 Projectile 3 | . . . . . . 3 . . . . . . . . . . . . . . . . . . . . AOE 5 | . . . . . . 5 . . . . . . . . . . . . . . . . . . . . Terrain Rammed . | . . . . . . . . . . . . . . . . . . . . . . . . . . . Walls Destroyed . | . . . . . . . . . . . . . . . . . . . . . . . . . . . Machines Disabled . | . . . . . . . . . . . . . . . . . . . . . . . . . . . Actions | -11 -10 -10 -9 -9 -9 -8 -8 -7 -6 -6 -6 -6 -5 -5 -5 -5 -4 -4 -4 -4 -3 -3 -3 -3 -2 -1 --------- Run | Scr Mat Min Mat Min Exi Min Mat Fac Fac Low Low Dat Pro Fac Ext Cet Fac Upp Upp War Pro Res Arm Lab Res Acc Total 20449 | 35 630 618 1357 333 630 364 697 2603 3099 996 344 145 326 1172 1281 272 408 232 350 781 173 1221 582 211 647 942 Wait 3841 | 5 86 28 278 2 6 60 126 686 929 400 32 12 51 130 279 28 175 . . 8 4 56 53 75 217 115 Move 15620 | 20 461 550 921 327 564 278 444 1822 2065 579 311 124 262 1008 964 229 221 231 335 761 168 1134 509 124 425 783 Hop 65 | . . . . . . . . 5 14 2 . . 4 1 2 3 . . . 1 1 4 4 . . 24 Pick Up 63 | 1 15 2 10 . 3 3 12 3 3 . . . . 5 . 1 . 1 . 3 . . 1 . . . Fast Attach 124 | 1 12 . 20 . 6 . 9 8 17 1 1 . 6 4 . 3 6 . 6 4 . 6 3 6 . 5 Attach 34 | . 1 3 2 . . . 3 9 7 2 . . . 4 . 2 . . . . . . . . . 1 Detach 8 | . . . . . . . . 1 3 . . . . 1 . 2 . . 1 . . . . . . . Swap 34 | 4 1 . 8 . 1 2 10 1 2 . . . . 3 2 . . . . . . . . . . . Drop 150 | 2 21 . 29 . 10 1 19 26 8 . . . 3 7 2 4 2 . 6 4 . 2 1 3 . . Fire 272 | 2 33 28 86 2 17 20 71 . 12 . . . . . . . . . 1 . . . . . . . Melee 196 | . . . . . . . 2 42 39 12 . 9 . 9 32 . 4 . 1 . . 19 11 3 5 8 Ram 6 | . . . . . . . . . . . . . . . . . . . . . . . . . . 6 Kick . | . . . . . . . . . . . . . . . . . . . . . . . . . . . Crush 13 | . . 7 3 2 . . 1 . . . . . . . . . . . . . . . . . . . Escape Stasis . | . . . . . . . . . . . . . . . . . . . . . . . . . . . Rewire 23 | . . . . . 23 . . . . . . . . . . . . . . . . . . . . . Trap . | . . . . . . . . . . . . . . . . . . . . . . . . . . . Miscellaneous . | . . . . . . . . . . . . . . . . . . . . . . . . . . . Route ------- -11/Scrapyard -10/Materials (discovered 3 exits: *Mat / *Min x2) -10/Mines (discovered 2 exits: *Mat x2) -9/Materials (discovered 4 exits: *Mat x2 / *Min / *Sto) -9/Mines (discovered 3 exits: *Mat / *Exi / [*Zio]) -9/Exiles (discovered 2 exits: [*Min x2]) -8/Mines -8/Materials -7/Factory (discovered 6 exits: *Fac x4 / *Low x2) -6/Factory (discovered 4 exits: *Fac x2 / *Low x2) -6/Lower Caves -6/Lower Caves -6/Data Miner -5/Proximity Caves -5/Factory (discovered 5 exits: Fac / *Upp x2 / *Ext x2) -5/Extension (discovered 2 exits: *Fac / *Cet) -5/Cetus -4/Factory -4/Upper Caves -4/Upper Caves -4/Warlord -3/Proximity Caves -3/Research (discovered 4 exits: *Res / *Arm / Qua x2) -3/Armory (discovered 3 exits: *Res x2 / *Lab) -3/Lab -2/Research (discovered 4 exits: *Acc x3 / *Tes) -1/Access (discovered 1 exit: Sur) History --------- Turn | Location | Event 8 | -11/Scrapyard | Discovered new exit (range 3) 53 | -11/Scrapyard | Entered Materials 313 | -10/Materials | Build established: Mutant 485 | -10/Materials | Discovered new exit (range 8) 721 | -10/Materials | Identified exit to Mines 892 | -10/Materials | Central database locked down 1015 | -10/Materials | Discovered exit to Mines (range 9) 1048 | -10/Materials | Discovered new exit (range 3) 1091 | -10/Materials | Entered Mines 1493 | -10/Mines | Learned location of Zion (-7) 1519 | -10/Mines | Assembled infested the area 1524 | -10/Mines | Assisted by a Guerilla fighting off Assembled 1807 | -10/Mines | Core integrity fell below 50% 1986 | -10/Mines | Core integrity fell below 20% 2026 | -10/Mines | Lost 3 parts (1n1u1w) 2167 | -10/Mines | Discovered new exit (range 8) 2188 | -10/Mines | Discovered new exit (range 4) 2199 | -10/Mines | Entered Materials 2199 | -9/Materials | Evolved 2 slots: Propulsion x1, Utility x1 2781 | -9/Materials | Discovered new exit (range 16) 3544 | -9/Materials | Discovered new exit (range 16) 3882 | -9/Materials | Build established: Scavenger-Mutant 4039 | -9/Materials | Discovered new exit (range 13) 4175 | -9/Materials | Identified exit to Mines 4175 | -9/Materials | Identified exit to Storage 4820 | -9/Materials | Entered Mines 4821 | -9/Mines | A Derelict revealed a hidden shortcut to a safe place 4841 | -9/Mines | Build established: Mutant 4842 | -9/Mines | Met a Derelict bent on vengeance 4877 | -9/Mines | Discovered new exit (range 14) 5002 | -9/Mines | Learned location of Storage (-9) 5101 | -9/Mines | Identified exit to Exiles 5347 | -9/Mines | Deemed a non-threat by the Exiles lab entrance 5355 | -9/Mines | Entered Exiles 5355 | -9/Exiles | Found Exiles lab destroyed 5376 | -9/Exiles | Discovered new exit (range 15) 5591 | -9/Exiles | Opened EX-Vault 5603 | -9/Exiles | Found Skeleton Box 6065 | -9/Exiles | Build established: Scavenger-Mutant 6352 | -9/Exiles | Discovered new exit (range 11) 6371 | -9/Exiles | Entered Mines 6371 | -8/Mines | Accompanied by 1 ally 6529 | -8/Mines | Build established: Hauler-Mutant 6980 | -8/Mines | Discovered new exit (range 10) 7000 | -8/Mines | Entered Materials 7000 | -8/Materials | Evolved 2 slots: Propulsion x1, Utility x1 7385 | -8/Materials | Build established: Scavenger-Mutant 8084 | -8/Materials | Discovered new exit (range 18) 8202 | -8/Materials | Entered Factory 8202 | -7/Factory | Evolved 2 slots: Utility x2 8213 | -7/Factory | Build established: Hauler-Mutant 8503 | -7/Factory | Identified exit to Lower Caves 8610 | -7/Factory | Garrison activated, responded to threat 9403 | -7/Factory | Identified exit to Factory 9418 | -7/Factory | Build established: Hacker-Sprinter 9657 | -7/Factory | Entered another Factory area 9657 | -6/Factory | Evolved 2 slots: Utility x2 9670 | -6/Factory | Discovered new exit (range 16) 9674 | -6/Factory | Identified exit to Lower Caves 10428 | -6/Factory | Build established: Hacker-Mutant 10527 | -6/Factory | Discovered new exit (range 8) 10529 | -6/Factory | Identified exit to Factory 10555 | -6/Factory | Discovered exit to Factory (range 3) 10699 | -6/Factory | Lost 5 parts (1p2n1u1w) 11144 | -6/Factory | Lost 4 parts (1p1n2u) 11644 | -6/Factory | Fabricated Hacking Suite (x1) 11679 | -6/Factory | Entered Lower Caves 11686 | -6/Lower Caves | Learned Factory trap positions 11801 | -6/Lower Caves | Encountered a Warlord checkpoint 11805 | -6/Lower Caves | Learned location of 1 exit from Factory 12083 | -6/Lower Caves | Spotted B-75 Beast 12123 | -6/Lower Caves | Build established: Hacker-Sprinter 12211 | -6/Lower Caves | Core integrity fell below 50% 12287 | -6/Lower Caves | Discovered new exit (range 10) 12289 | -6/Lower Caves | Identified exit to Lower Caves 12290 | -6/Lower Caves | Attracted the attention of an 0b10 checkpoint 12290 | -6/Lower Caves | Entered another Lower Caves area 12393 | -6/Lower Caves | Encountered a Warlord checkpoint 12418 | -6/Lower Caves | Discovered new exit (range 12) 12422 | -6/Lower Caves | Identified exit to Data Miner 12424 | -6/Lower Caves | Entered Data Miner 12424 | -6/Data Miner | Discovered new exit (range 6) 12426 | -6/Data Miner | Identified exit to Proximity Caves 12431 | -6/Data Miner | Met Data Miner 12456 | -6/Data Miner | Learned location of Section 7 (-3) 12456 | -6/Data Miner | Acquired the access code to Warlord's prototype stash 12461 | -6/Data Miner | Received God Mode back door access code from Data Miner 12479 | -6/Data Miner | Data Conduit disabled 12503 | -6/Data Miner | Entered Proximity Caves 12508 | -5/Proximity Caves | Spotted B-75 Beast 12652 | -5/Proximity Caves | Attracted the attention of an 0b10 outpost 12661 | -5/Proximity Caves | Core integrity fell below 20% 12661 | -5/Proximity Caves | Discovered exit to Factory (range 4) 12662 | -5/Proximity Caves | Entered Factory 12662 | -5/Factory | Evolved 2 slots: Power x1, Propulsion x1 12663 | -5/Factory | Identified exit to Upper Caves 12664 | -5/Factory | Identified exit to Factory 12665 | -5/Factory | Loaded intel: 91 trap records 12699 | -5/Factory | Identified exit to Extension 12825 | -5/Factory | Fabricated Biomechanical Wings (x1) 12965 | -5/Factory | Local fabrication network quarantined 13025 | -5/Factory | Fabricated Exp. Sensor Array? 13157 | -5/Factory | Entered Extension 13516 | -5/Extension | Rescued a captive Derelict 13525 | -5/Extension | Rescued a captive Derelict 13534 | -5/Extension | Rescued a captive Derelict 13534 | -5/Extension | Rescued a captive Derelict 13551 | -5/Extension | Spotted B-75 Beast 13581 | -5/Extension | Spotted B-75 Beast 13600 | -5/Extension | Rescued A7 13669 | -5/Extension | Rescued a captive Derelict 13755 | -5/Extension | Rescued a captive Derelict 13765 | -5/Extension | Rescued a captive Derelict 13769 | -5/Extension | Rescued a captive Derelict 13769 | -5/Extension | Rescued a captive Derelict 13775 | -5/Extension | Discovered exit to Factory (range 10) 13775 | -5/Extension | Discovered new exit (range 6) 13777 | -5/Extension | Identified exit to Cetus 13808 | -5/Extension | Disrupted transfer network 13808 | -5/Extension | Entered Cetus 13808 | -5/Cetus | Accompanied by 3 allies (A7) 13813 | -5/Cetus | Acquired a Cetus Manufacturing Module code from A7 13813 | -5/Cetus | Spotted Cetus Guard 13814 | -5/Cetus | Spotted Cetus Guard 13814 | -5/Cetus | Spotted Cetus Guard 13843 | -5/Cetus | Spotted Cetus Guard 13845 | -5/Cetus | Found Prototype Protection 13845 | -5/Cetus | Identified Med. Regenerative Plating 13848 | -5/Cetus | Extracted ID and sensor layout for unrecognized location from A7's data core 13877 | -5/Cetus | Started Cetus Manufacturing Module 13902 | -5/Cetus | Manufactured an Enhanced Grunt 13910 | -5/Cetus | Cetus Manufacturing Module disabled 13916 | -5/Cetus | Discovered exit to Factory (range 15) 13926 | -5/Cetus | Entered Factory 13926 | -4/Factory | Evolved 2 slots: Utility x2 13929 | -4/Factory | Lost 5 parts (2n3u) 14098 | -4/Factory | Fabricated Exp. Sensor Array (x1) 14129 | -4/Factory | Discovered new exit (range 9) 14135 | -4/Factory | Identified exit to Upper Caves 14203 | -4/Factory | Entered Upper Caves 14248 | -4/Upper Caves | Learned Research emergency access door positions 14288 | -4/Upper Caves | Discovered new exit (range 7) 14290 | -4/Upper Caves | Identified exit to Upper Caves 14290 | -4/Upper Caves | Entered another Upper Caves area 14318 | -4/Upper Caves | Acquired the password to a Derelict Tinkerer's latest research 14322 | -4/Upper Caves | Found Prototype Special Weapon 14322 | -4/Upper Caves | Identified Molecular Deconstructor 14377 | -4/Upper Caves | Learned Research terminal intel 14414 | -4/Upper Caves | Build established: Hacker-Scout 14429 | -4/Upper Caves | Discovered new exit (range 10) 14432 | -4/Upper Caves | Identified exit to Warlord 14432 | -4/Upper Caves | Entered Warlord 14570 | -4/Warlord | Met Warlord 14582 | -4/Warlord | Opened Warlord's prototype stash 14595 | -4/Warlord | Warlord's base attacked by MAIN.C 14645 | -4/Warlord | Found Prototype Device 14645 | -4/Warlord | Identified Minesniffer Drone Bay 14661 | -4/Warlord | Found Prototype Energy Gun 14661 | -4/Warlord | Identified Vortex Rail 14663 | -4/Warlord | Found Vortex Rail 14693 | -4/Warlord | Opened side exit 14707 | -4/Warlord | Discovered new exit (range 9) 14709 | -4/Warlord | Identified exit to Proximity Caves 14709 | -4/Warlord | Entered Proximity Caves 14718 | -3/Proximity Caves | Spotted B-86 Titan 14761 | -3/Proximity Caves | Discovered new exit (range 12) 14764 | -3/Proximity Caves | Identified exit to Research 14765 | -3/Proximity Caves | Entered Research 14765 | -3/Research | Evolved 2 slots: Propulsion x1, Utility x1 14767 | -3/Research | Loaded intel: 18 terminal locations 14842 | -3/Research | Spotted B-86 Titan 15036 | -3/Research | Discovered new exit (range 15) 15063 | -3/Research | Identified exit to Research 15109 | -3/Research | Allied Derelicts emerged from ambush trap array 15131 | -3/Research | Identified exit to Armory 15131 | -3/Research | Identified exit to Quarantine 15207 | -3/Research | Entered Armory 15226 | -3/Armory | Spotted B-86 Titan 15355 | -3/Armory | Discovered exit to Research (range 14) 15392 | -3/Armory | Discovered exit to Research (range 17) 15420 | -3/Armory | Discovered new exit (range 17) 15439 | -3/Armory | Identified exit to Lab 15439 | -3/Armory | Entered Lab 15439 | -3/Lab | Discovered exit to Research (range 9) 15443 | -3/Lab | Hidden lab's door opened automatically 15443 | -3/Lab | Sensor layout match revealed 15443 | -3/Lab | Unable to decrypt terminal 15444 | -3/Lab | Gained access to the hidden lab's interior 15519 | -3/Lab | Unable to decrypt terminal 15521 | -3/Lab | Found Alien Artifact 15521 | -3/Lab | Identified Core Reset Matrix 15521 | -3/Lab | Used Core Reset Matrix 15525 | -3/Lab | Sensed 3 artifacts in vicinity 15526 | -3/Lab | Unable to decrypt terminal 15531 | -3/Lab | Detected by scanners 15535 | -3/Lab | Found Integrated Dissipator 15535 | -3/Lab | Installed Integrated Dissipator, increased core heat dissipation (+20) 15540 | -3/Lab | Confronted by A5 15540 | -3/Lab | Found Core Expander 15540 | -3/Lab | Installed Core Expander, added new Propulsion slot 15552 | -3/Lab | Found Prototype Hackware 15552 | -3/Lab | Identified Deep Network Scanner 15558 | -3/Lab | Unable to decrypt terminal 15566 | -3/Lab | Discovered exit to Research (range 6) 15567 | -3/Lab | Entered Research 15567 | -2/Research | Warlord forces began assault on 0b10 15567 | -2/Research | Evolved 2 slots: Utility x2 15571 | -2/Research | Identified exit to Access 15677 | -2/Research | Research machine network offline 15788 | -2/Research | Spotted B-90 Cyclops 15814 | -2/Research | Discovered new exit (range 5) 15815 | -2/Research | Identified exit to Testing 15820 | -2/Research | Build established: Wizard-Scout 15916 | -2/Research | Entered Access 15916 | -1/Access | Evolved 2 slots: Utility x2 16123 | -1/Access | Identified exit to Surface 16195 | -1/Access | Lost 5 parts (2n1u2w) 16199 | -1/Access | Spotted B-99 Colossus 16218 | -1/Access | Intercept squad dispatched 16225 | -1/Access | Spotted Tracker 16226 | -1/Access | Spotted Tracker 16230 | -1/Access | Spotted Combat Programmer 16284 | -1/Access | Core integrity fell below 50% 16288 | -1/Access | Lost 10 parts (2p3n5u) 16293 | -1/Access | Emitted hypermatrix ping 16298 | -1/Access | Assembled emerged from beneath the floor 16299 | -1/Access | Spotted Combat Programmer 16307 | -1/Access | Garrison activated, responded to threat 16318 | -1/Access | Core integrity fell below 20% 16322 | -1/Access | Spotted B-99 Colossus 16327 | -1/Access | Destroyed by B-99 Colossus with Linear Accelerator Last Messages --------------- 16307_ ALERT: Activating Garrison Access A003. 16317_ Phase Shifter destroyed. 16317_ Deep Network Scanner destroyed. 16318_ K-01 Serf cleans the Spectral Interrupter. 16319_ P-80 Master suffers critical hit. 16322_ Combat Programmer resets P-80 Master, system corruption cleaned. 16323_ Knocked back. 16323_ Slug penetrates Wall. 16323_ Penetrated by Slug. 16323_ Slug penetrates Wall. 16324_ Penetrated by Slug. 16324_ Slug penetrates Wall. 16326_ Xenon Bombardment Thruster destroyed. 16326_ Adv. Signal Interpreter destroyed. 16326_ Knocked back. 16326_ Penetrated by Slug. 16326_ Slug penetrates Reinforced Barrier. 16326_ Slug penetrates B-99 Colossus. 16326_ Slug penetrates Reinforced Barrier. [Achievement: I Think I Know What's Going On] Map ----- +----------------------------------------------------+ | ?????????????????????????????????????????????????? | | ?????????????????????????????????????????????????? | | ?????????????????????????????????????????????????? | | ?????????????????????????????????????????????????? | | ?????????????????????????????????????????????????? | | ?????????????????????????????????????????????????? | | ?????????????????????????????????????????????????? | | ?????????????????????????????????????????????????? | | ?????????????????????????????????????????????????? | | ?????????????????????????????????????????????????? | | ?????????????????????????????????????????????????? | | ?????????????????????????????????????????????????? | | ?????????????????????????????????????????????????? | | ?????????????????????????????????????????????????? | | ?????????????????????????????????????????????????? | | ????????????????????????